bitfinex-derivatives/quotes_BTCF0:USTF0_20251208
["timestamp","ask_amount","ask_price","bid_price","bid_amount"]
[1765162601858,0.08255,91474.0,91473.0,0.49038776]
[1765162602070,0.08255,91474.0,91473.0,0.45145402]
[1765162602561,0.07403327,91486.0,91485.0,0.0767]
[1765162605165,0.07376,91481.0,91480.0,0.0876304]
[1765162605667,0.07376,91481.0,91480.0,0.0767]
[1765162605868,0.07376,91477.0,91476.0,0.0495508]
[1765162606056,0.07376,91477.0,91476.0,0.0876308]
[1765162606960,0.07376,91477.0,91476.0,0.0926308]
[1765162607156,0.07376,91477.0,91476.0,0.0936308]
[1765162607462,0.07376,91477.0,91476.0,0.12756454]
[1765162608259,0.09835,91483.0,91482.0,0.0767]
[1765162611364,0.07376,91478.0,91477.0,0.0767]
[1765162612571,0.07376,91478.0,91477.0,0.0777]
[1765162612771,0.07376,91478.0,91477.0,0.001]
[1765162615761,0.00027327,91486.0,91477.0,0.001]
[1765162615762,0.07403327,91486.0,91485.0,0.0767]
[1765162616463,0.00027327,91486.0,91485.0,0.5067]
[1765162617759,0.00127327,91486.0,91485.0,0.5067]
[1765162617963,0.04033327,91486.0,91485.0,0.5067]
[1765162619368,0.00127327,91486.0,91485.0,0.5067]
[1765162619965,0.04033327,91486.0,91485.0,0.5067]
[1765162620668,0.04033327,91486.0,91485.0,0.3267]
[1765162621377,0.04033327,91486.0,91485.0,0.0767]
[1765162622563,0.07376,91485.0,91484.0,0.0767]
[1765162623070,0.07376,91481.0,91480.0,0.0767]
[1765162623265,0.07376,91481.0,91480.0,0.2567]
[1765162623473,0.07376,91481.0,91480.0,0.0767]
[1765162626980,0.07376,91478.0,91477.0,0.03894434]
[1765162627166,0.07376,91474.0,91473.0,0.03878402]
[1765162627372,0.07376,91474.0,91473.0,0.07686402]
[1765162629675,0.07376,91474.0,91473.0,0.00016402]
[1765162629869,0.07376,91474.0,91473.0,0.00116402]
[1765162636987,0.07476,91474.0,91473.0,0.00016402]
[1765162639887,0.07476,91474.0,91473.0,0.03315402]
[1765162640088,0.07476,91474.0,91473.0,0.00016402]
[1765162640291,0.07476,91474.0,91473.0,0.06762402]
[1765162640792,0.07376,91474.0,91473.0,0.03315402]
[1765162641288,0.07376,91474.0,91473.0,0.00016402]
[1765162642179,0.07376,91474.0,91473.0,0.06762402]
[1765162642382,0.09072,91483.0,91482.0,0.0783902]
[1765162645288,0.09172,91483.0,91482.0,0.0783902]
[1765162646700,0.09172,91483.0,91482.0,0.06746]
[1765162648897,0.06613,91474.0,91473.0,0.00016402]
[1765162649197,0.02049,91476.0,91455.0,0.0109334]
[1765162649198,0.06613,91462.0,91461.0,0.06746]
[1765162651096,0.06613,91457.0,91456.0,0.10640434]
[1765162651284,0.06613,91457.0,91456.0,0.07193434]
[1765162651695,0.06613,91457.0,91456.0,0.10640434]
[1765162651888,0.06613,91457.0,91456.0,0.07193434]
[1765162652102,0.06613,91457.0,91456.0,0.03299]
[1765162652400,0.06613,91457.0,91456.0,0.06746]
[1765162652586,0.06713,91457.0,91456.0,0.07646]
[1765162652895,0.06713,91457.0,91456.0,0.009]
[1765162653395,0.06713,91457.0,91456.0,0.024]
[1765162656894,0.06713,91457.0,91456.0,0.09146]
[1765162660296,0.001,91457.0,91456.0,0.47146]
[1765162662897,0.06292,91457.0,91456.0,0.10146]
[1765162663404,0.06292,91457.0,91456.0,0.09146]
[1765162665907,0.06292,91457.0,91456.0,0.024]
[1765162684819,0.06292,91457.0,91456.0,0.48331]
[1765162685024,0.001,91457.0,91456.0,0.48331]
[1765162685321,0.01712,91475.0,91470.0,0.05931]
[1765162685322,0.05698402,91471.0,91470.0,0.05931]
[1765162686222,0.05698402,91471.0,91470.0,0.0702416]
[1765162687618,0.02790402,91471.0,91470.0,0.0702416]
[1765162687807,0.05698402,91471.0,91470.0,0.05931]
[1765162688011,0.05698402,91471.0,91470.0,0.06031]
[1765162689126,0.05698402,91471.0,91470.0,0.001]
[1765162690222,0.06791552,91471.0,91470.0,0.001]
[1765162690425,0.05698402,91471.0,91470.0,0.001]
[1765162690927,0.06791552,91471.0,91470.0,0.001]
[1765162691417,0.05698402,91471.0,91470.0,0.06031]
[1765162692425,0.05698402,91471.0,91470.0,0.001]
[1765162693822,0.06791552,91471.0,91470.0,0.001]
[1765162694025,0.05698402,91471.0,91470.0,0.001]
[1765162699529,0.05815,91461.0,91460.0,0.0109328]
[1765162700823,0.05915,91461.0,91460.0,0.0379328]
[1765162701935,0.05915,91461.0,91460.0,0.0209328]
[1765162702531,0.05915,91461.0,91460.0,0.0537628]
[1765162702829,0.05915,91461.0,91460.0,0.0487628]
[1765162702830,0.05815,91461.0,91460.0,0.0487628]
[1765162703433,0.05815,91461.0,91460.0,0.0437628]
[1765162703636,0.05815,91461.0,91460.0,0.0760028]
[1765162705935,0.05815,91461.0,91460.0,0.0710028]
[1765162706137,0.05815,91461.0,91460.0,0.0720028]
[1765162707037,0.05815,91461.0,91460.0,0.0670028]
[1765162708538,0.05815,91461.0,91460.0,0.0119328]
[1765162708741,0.05815,91461.0,91460.0,0.0397628]
[1765162710045,0.05815,91461.0,91460.0,0.0670028]
[1765162710539,0.05815,91461.0,91460.0,0.05607]
[1765162717643,0.05815,91470.0,91469.0,0.05507]
[1765162719048,0.07596,91470.0,91469.0,0.05507]
[1765162719350,0.05815,91470.0,91469.0,0.05507]
[1765162719942,0.07596,91470.0,91469.0,0.05507]
[1765162725760,0.07596,91470.0,91469.0,0.05607]
[1765162727266,0.07596,91470.0,91469.0,0.05507]
[1765162728063,0.07596,91470.0,91469.0,0.05607]
[1765162728866,0.07596,91470.0,91469.0,0.05507]
[1765162729064,0.00016402,91471.0,91470.0,0.0790416]
[1765162729264,0.00016402,91471.0,91469.0,0.001]
[1765162729265,0.05694402,91471.0,91469.0,0.001]
[1765162729465,0.07304,91470.0,91469.0,0.001]
[1765162730261,0.07304,91470.0,91464.0,0.0109323]
[1765162730558,0.07304,91465.0,91464.0,0.0674323]
[1765162731969,0.07304,91465.0,91464.0,0.0684323]
[1765162733367,0.07304,91465.0,91464.0,0.0674323]
[1765162733670,0.07304,91465.0,91464.0,0.0575]
[1765162734175,0.07304,91465.0,91464.0,0.02977]
[1765162734471,0.07304,91465.0,91464.0,0.001]
[1765162735263,0.07304,91465.0,91464.0,0.02977]
[1765162737574,0.07304,91465.0,91464.0,0.001]
[1765162738468,0.07304,91465.0,91464.0,0.05678]
[1765162744579,0.07304,91465.0,91464.0,0.001]
[1765162744981,0.07304,91465.0,91464.0,0.02829]
[1765162745384,0.07304,91465.0,91464.0,0.001]
[1765162746084,0.05725,91453.0,91451.0,0.03892628]
[1765162746279,0.05725,91453.0,91450.0,0.03892628]
[1765162747378,0.05725,91453.0,91452.0,0.0490903]
[1765162747379,0.05825,91453.0,91452.0,0.0490903]
[1765162747684,0.05825,91453.0,91452.0,0.0670903]
[1765162747882,0.05825,91453.0,91452.0,0.028]
[1765162751385,0.05725,91444.0,91443.0,0.07190317]
[1765162751587,0.05725,91444.0,91443.0,0.00016402]
[1765162752083,0.0681847,91444.0,91443.0,0.00016402]
[1765162752285,0.0681847,91444.0,91434.0,0.07173915]
[1765162752286,0.07352,91435.0,91434.0,0.12852915]
[1765162752485,0.07352,91435.0,91434.0,0.05679]
[1765162753086,0.07352,91435.0,91425.0,0.07173915]
[1765162753289,0.05712,91426.0,91425.0,0.13964615]
[1765162753493,0.05712,91426.0,91425.0,0.067907]
[1765162754385,0.06312,91426.0,91425.0,0.067907]
[1765162754780,0.06312,91426.0,91425.0,0.038407]
[1765162754980,0.07712,91426.0,91425.0,0.038407]
[1765162755391,0.07345,91422.0,91421.0,0.02763402]
[1765162756381,0.07345,91422.0,91421.0,0.00016402]
[1765162757189,0.07345,91422.0,91400.0,0.07173915]
[1765162757190,0.06372,91410.0,91409.0,0.0109388]
[1765162757396,0.06372,91410.0,91409.0,0.05697]
[1765162758288,0.06472,91410.0,91409.0,0.06597]
[1765162758495,0.06472,91410.0,91409.0,0.06997]
[1765162758994,0.0756588,91410.0,91409.0,0.04047]
[1765162759300,0.0756588,91410.0,91409.0,0.013]
[1765162760591,0.06472,91410.0,91409.0,0.04047]
[1765162760794,0.001,91410.0,91409.0,0.06997]
[1765162760989,0.02831,91410.0,91409.0,0.42997]
[1765162761496,0.05812,91410.0,91409.0,0.42997]
[1765162761799,0.05812,91410.0,91409.0,0.06997]
[1765162764182,0.05812,91410.0,91409.0,0.48997]
[1765162768098,0.05812,91410.0,91409.0,0.06997]
[1765162769398,0.07445,91410.0,91409.0,0.013]
[1765162769606,0.0853888,91410.0,91409.0,0.013]
[1765162769795,0.07445,91410.0,91409.0,0.04047]
[1765162769990,0.07445,91410.0,91409.0,0.06997]
[1765162770699,0.05812,91410.0,91409.0,0.06997]
[1765162771003,0.07445,91410.0,91409.0,0.06997]
[1765162771802,0.05812,91410.0,91409.0,0.06997]
[1765162772401,0.001,91410.0,91409.0,0.06997]
[1765162772902,0.02831,91410.0,91409.0,0.06997]
[1765162776804,0.001,91410.0,91409.0,0.06997]
[1765162777005,0.02831,91410.0,91409.0,0.06997]
[1765162777204,0.05812,91410.0,91409.0,0.06997]
[1765162781003,0.0853888,91410.0,91409.0,0.06997]
[1765162782298,0.07445,91410.0,91409.0,0.06997]
[1765162783009,0.05812,91410.0,91409.0,0.06997]
[1765162785505,0.08122541,91410.0,91409.0,0.06997]
[1765162786194,0.09763541,91410.0,91409.0,0.013]
[1765162786403,0.08122541,91410.0,91409.0,0.0681]
[1765162787607,0.09763541,91410.0,91409.0,0.0681]
[1765162788202,0.08122541,91410.0,91409.0,0.0681]
[1765162792802,0.09763541,91410.0,91409.0,0.0681]
[1765162795117,0.08122541,91410.0,91409.0,0.0681]
[1765162795817,0.09763541,91410.0,91409.0,0.0681]
[1765162799224,0.08122541,91410.0,91409.0,0.0681]
[1765162800624,0.001,91410.0,91409.0,0.0681]
[1765162800926,0.07298,91425.0,91424.0,0.0551]
[1765162801116,0.09609732,91425.0,91424.0,0.0551]
[1765162801722,0.07976732,91425.0,91424.0,0.0551]
[1765162802020,0.08076732,91425.0,91424.0,0.0551]
[1765162802625,0.05765,91425.0,91424.0,0.0551]
[1765162802812,0.07765,91425.0,91424.0,0.0551]
[1765162805018,0.021,91425.0,91424.0,0.4851]
[1765162805410,0.07765,91425.0,91424.0,0.0551]
[1765162809924,0.07765,91425.0,91424.0,0.4551]
[1765162809925,0.021,91425.0,91424.0,0.4551]
[1765162810422,0.07765,91425.0,91424.0,0.0551]
[1765162813721,0.021,91425.0,91424.0,0.3851]
[1765162817526,0.04919,91425.0,91424.0,0.3851]
[1765162817726,0.04919,91425.0,91424.0,0.0551]
[1765162817727,0.07764,91425.0,91424.0,0.0551]
[1765162817922,0.07764,91425.0,91422.0,0.0272073]
[1765162817923,0.05579,91423.0,91413.0,0.03893011]
[1765162818123,0.05579,91407.0,91406.0,0.00027351]
[1765162819328,0.05579,91407.0,91406.0,0.00527351]
[1765162819916,0.05679,91407.0,91406.0,0.01427351]
[1765162822426,0.05679,91407.0,91400.0,0.00016402]
[1765162822427,0.0667299,91401.0,91400.0,0.00016402]
[1765162822826,0.07309,91392.0,91391.0,0.010941]
[1765162824627,0.07609,91392.0,91391.0,0.010941]
[1765162825224,0.09909,91392.0,91391.0,0.010941]
[1765162827034,0.09909,91392.0,91391.0,0.066901]
[1765162828327,0.10209,91392.0,91391.0,0.05596]
[1765162829930,0.10109,91392.0,91391.0,0.05596]
[1765162830536,0.08379,91392.0,91391.0,0.05596]
[1765162831232,0.05979,91392.0,91391.0,0.05696]
[1765162831426,0.08479,91392.0,91391.0,0.05696]
[1765162831822,0.05979,91392.0,91391.0,0.05696]
[1765162832028,0.08379,91392.0,91391.0,0.05696]
[1765162832634,0.08379,91392.0,91391.0,0.41696]
[1765162832839,0.07979,91392.0,91391.0,0.41596]
[1765162833133,0.06979,91392.0,91391.0,0.41596]
[1765162834540,0.06979,91392.0,91391.0,0.41796]
[1765162835038,0.014,91392.0,91391.0,0.41796]
[1765162835739,0.05579,91410.0,91409.0,0.0668989]
[1765162835931,0.05579,91410.0,91409.0,0.4368989]
[1765162836139,0.02734,91410.0,91409.0,0.4368989]
[1765162836330,0.05579,91410.0,91409.0,0.4368989]
[1765162837341,0.02734,91410.0,91409.0,0.4368989]
[1765162837644,0.00016402,91416.0,91415.0,0.05596]
[1765162837944,0.00016402,91416.0,91415.0,0.48596]
[1765162838136,0.00016402,91416.0,91415.0,0.17596]
[1765162838338,0.02750402,91416.0,91415.0,0.17596]
[1765162838747,0.03350402,91416.0,91415.0,0.17596]
[1765162838941,0.03350402,91416.0,91415.0,0.44596]
[1765162839244,0.03350402,91416.0,91415.0,0.45296]
[1765162839245,0.02850402,91416.0,91415.0,0.45296]
[1765162839449,0.02850402,91416.0,91415.0,0.46196]
[1765162842245,0.00116402,91416.0,91415.0,0.46196]
[1765162842547,0.05837,91434.0,91433.0,0.069456]
[1765162842743,0.05837,91434.0,91433.0,0.219456]
[1765162844336,0.06237,91434.0,91433.0,0.219456]
[1765162844940,0.06837,91434.0,91433.0,0.219456]
[1765162850147,0.08571,91434.0,91433.0,0.069456]
[1765162850348,0.08571,91434.0,91433.0,0.010936]
[1765162850549,0.02734,91434.0,91429.0,0.0694565]
[1765162850749,0.05837,91425.0,91424.0,0.00016412]
[1765162851654,0.05837,91425.0,91424.0,0.06962122]
[1765162852152,0.03572,91425.0,91424.0,0.06962122]
[1765162852449,0.06437,91425.0,91424.0,0.06962122]
[1765162853244,0.03572,91425.0,91424.0,0.32962122]
[1765162853446,0.03772,91425.0,91424.0,0.32962122]
[1765162854353,0.06637,91425.0,91424.0,0.06962122]
[1765162855053,0.06637,91425.0,91424.0,0.16962122]
[1765162856448,0.008,91425.0,91424.0,0.43962122]
[1765162857545,0.02972,91440.0,91439.0,0.0674453]
[1765162857748,0.00027339,91446.0,91442.0,0.05599]
[1765162857948,0.00027339,91446.0,91442.0,0.44599]
[1765162858647,0.0289,91464.0,91463.0,0.05599]
[1765162858855,0.05661,91464.0,91463.0,0.26599]
[1765162859450,0.05661,91464.0,91463.0,0.2769225]
[1765162860150,0.00016402,91473.0,91463.0,0.2769225]
[1765162860350,0.02906402,91473.0,91472.0,0.05599]
[1765162860659,0.05677402,91473.0,91472.0,0.05599]
[1765162863260,0.05877402,91473.0,91472.0,0.05599]
[1765162864482,0.05877402,91473.0,91461.0,0.0109327]
[1765162864764,0.07456,91455.0,91454.0,0.05615402]
[1765162865161,0.07456,91455.0,91454.0,0.00016402]
[1765162866760,0.07556,91455.0,91454.0,0.00816402]
[1765162867669,0.07556,91455.0,91454.0,0.02516402]
[1765162868065,0.0109347,91445.0,91430.0,0.06728242]
[1765162868252,0.0109347,91445.0,91419.0,0.05822545]
[1765162868253,0.05661,91427.0,91426.0,0.0109369]
[1765162868452,0.07143,91416.0,91414.0,0.0290631]
[1765162868662,0.05661,91409.0,91408.0,0.02821]
[1765162868967,0.05661,91409.0,91408.0,0.44599]
[1765162869664,0.05761,91409.0,91408.0,0.46993]
[1765162870167,0.012,91409.0,91408.0,0.46993]
[1765162870462,0.001,91409.0,91408.0,0.46993]
[1765162870666,0.012,91409.0,91408.0,0.46993]
[1765162871362,0.015,91409.0,91408.0,0.46293]
[1765162872157,0.011,91409.0,91408.0,0.46293]
[1765162872358,0.012,91409.0,91408.0,0.46893]
[1765162872554,0.001,91409.0,91408.0,0.46893]
[1765162872754,0.06966,91409.0,91408.0,0.46893]
[1765162873271,0.05766,91409.0,91408.0,0.46893]
[1765162873569,0.05766,91409.0,91408.0,0.42505]
[1765162873865,0.05766,91409.0,91408.0,0.18871]
[1765162874067,0.05866,91409.0,91408.0,0.06471]
[1765162874662,0.05766,91409.0,91408.0,0.05871]
[1765162874860,0.06166,91409.0,91408.0,0.05871]
[1765162875168,0.06166,91409.0,91408.0,0.07588]
[1765162875470,0.05124,91409.0,91408.0,0.07588]
[1765162875669,0.05524,91409.0,91408.0,0.07588]
[1765162875868,0.08466,91409.0,91408.0,0.07588]
[1765162876563,0.06066,91409.0,91408.0,0.07588]
[1765162876772,0.07266,91409.0,91408.0,0.086819]
[1765162877070,0.07266,91409.0,91408.0,0.02905]
[1765162877764,0.07366,91409.0,91408.0,0.03005]
[1765162878470,0.05666,91407.0,91406.0,0.00027351]
[1765162878968,0.05666,91407.0,91399.0,0.00016402]
[1765162878969,0.07394,91400.0,91399.0,0.00016402]
[1765162880359,0.05666,91374.0,91373.0,0.0290631]
[1765162880678,0.02724,91368.0,91367.0,0.0696539]
[1765162880970,0.02724,91370.0,91369.0,0.0696536]
[1765162881167,0.05666,91370.0,91369.0,0.05871]
[1765162881364,0.05666,91370.0,91369.0,0.0588497]
[1765162881558,0.05679727,91370.0,91369.0,0.0588497]
[1765162881755,0.05679727,91370.0,91369.0,0.0697934]
[1765162882461,0.07979727,91370.0,91369.0,0.0697934]
[1765162883562,0.08279727,91370.0,91369.0,0.0697934]
[1765162885371,0.08179727,91370.0,91369.0,0.0697934]
[1765162887478,0.08179727,91370.0,91369.0,0.0696537]
[1765162887670,0.08179727,91370.0,91369.0,0.0697934]
[1765162887976,0.08179727,91370.0,91369.0,0.0588497]
[1765162889878,0.02513727,91370.0,91369.0,0.4788497]
[1765162890776,0.00016411,91379.0,91378.0,0.05871]
[1765162891078,0.05682411,91379.0,91378.0,0.0696526]
[1765162892074,0.08182411,91379.0,91378.0,0.0696526]
[1765162892578,0.08582411,91379.0,91378.0,0.0696526]
[1765162893276,0.08482411,91379.0,91378.0,0.0696526]
[1765162894276,0.05982411,91379.0,91378.0,0.0696526]
[1765162894867,0.05982411,91379.0,91378.0,0.0697923]
[1765162895470,0.00316411,91379.0,91378.0,0.4497923]
[1765162895765,0.05666,91400.0,91399.0,0.05871]
[1765162896882,0.06366,91400.0,91399.0,0.05971]
[1765162904985,0.06366,91400.0,91399.0,0.07628]
[1765162905184,0.00016411,91409.0,91399.0,0.07628]
[1765162905185,0.00016411,91409.0,91408.0,0.067729]
[1765162905388,0.00016411,91409.0,91408.0,0.0678687]
[1765162905887,0.02800411,91409.0,91408.0,0.0678687]
[1765162906288,0.00016411,91409.0,91408.0,0.0678687]
[1765162907381,0.00616411,91409.0,91408.0,0.0748687]
[1765162908089,0.00016411,91409.0,91408.0,0.0778687]
[1765162908592,0.02800411,91409.0,91408.0,0.0778687]
[1765162908887,0.05643411,91409.0,91408.0,0.0778687]
[1765162910584,0.02800411,91409.0,91408.0,0.0778687]
[1765162910790,0.05643411,91409.0,91408.0,0.0778687]
[1765162911190,0.05643411,91409.0,91408.0,0.0669297]
[1765162911688,0.05643411,91409.0,91408.0,0.0101397]
[1765162912286,0.05743411,91409.0,91408.0,0.0071397]
[1765162912490,0.05743411,91409.0,91390.0,0.00016411]
[1765162912491,0.05627,91391.0,91390.0,0.02965411]
[1765162912884,0.05627,91391.0,91390.0,0.00016411]
[1765162914188,0.05627,91391.0,91390.0,0.02216411]
[1765162914686,0.05727,91391.0,91390.0,0.03116411]
[1765162915586,0.05727,91391.0,91390.0,0.04210531]
[1765162915792,0.05727,91391.0,91390.0,0.03116411]
[1765162916189,0.05627,91378.0,91377.0,0.0109426]
[1765162917099,0.05627,91373.0,91372.0,0.0677333]
[1765162918500,0.05827,91378.0,91377.0,0.0677327]
[1765162919495,0.05627,91378.0,91377.0,0.0677327]
[1765162919895,0.05627,91378.0,91377.0,0.05679]
[1765162920300,0.05927,91378.0,91377.0,0.05679]
[1765162920696,0.05927,91378.0,91377.0,0.05779]
[1765162921006,0.09127,91378.0,91377.0,0.05779]
[1765162921799,0.035,91378.0,91377.0,0.43779]
[1765162921997,0.09127,91378.0,91377.0,0.05779]
[1765162922795,0.09127,91378.0,91377.0,0.001]
[1765162923392,0.09127,91378.0,91377.0,0.03049]
[1765162924092,0.09127,91378.0,91377.0,0.05779]
[1765162925095,0.035,91378.0,91377.0,0.05779]
[1765162926104,0.06236,91378.0,91377.0,0.05779]
[1765162927199,0.09032,91378.0,91377.0,0.05779]
[1765162928100,0.1012626,91378.0,91377.0,0.001]
[1765162928301,0.1012626,91378.0,91366.0,0.0390906]
[1765162928302,0.0662639,91367.0,91366.0,0.00027363]
[1765162929204,0.05532,91364.0,91363.0,0.00016411]
[1765162929401,0.05532,91364.0,91363.0,0.05599411]
[1765162930703,0.05632,91364.0,91363.0,0.06199411]
[1765162931413,0.001,91364.0,91363.0,0.06199411]
[1765162932202,0.009,91364.0,91363.0,0.06199411]
[1765162933211,0.00016411,91382.0,91381.0,0.05889]
[1765162933705,0.00016411,91382.0,91381.0,0.46889]
[1765162933905,0.00016411,91382.0,91381.0,0.05889]
[1765162934111,0.00016411,91382.0,91381.0,0.07889]
[1765162934607,0.00016411,91382.0,91381.0,0.05889]
[1765162934814,0.00016411,91382.0,91381.0,0.41889]
[1765162935111,0.00416411,91382.0,91381.0,0.41889]
[1765162935311,0.03516411,91382.0,91381.0,0.41989]
[1765162935814,0.00016411,91382.0,91381.0,0.05889]
[1765162936001,0.00616411,91382.0,91381.0,0.06489]
[1765162936714,0.05825411,91382.0,91381.0,0.06589]
[1765162936916,0.05925411,91382.0,91381.0,0.06589]
[1765162937826,0.05925411,91382.0,91381.0,0.007]
[1765162938118,0.05925411,91382.0,91370.0,0.0698336]
[1765162938119,0.05709,91371.0,91370.0,0.0698336]
[1765162938701,0.05709,91367.0,91361.0,0.02916147]
[1765162939010,0.0109426,91378.0,91360.0,0.01646]
[1765162939204,0.05192,91371.0,91370.0,0.05889]
[1765162939400,0.07909,91371.0,91370.0,0.05889]
[1765162939607,0.05709,91371.0,91370.0,0.05889]
[1765162940117,0.05725411,91382.0,91381.0,0.05889]
[1765162940615,0.05709,91370.0,91369.0,0.0698337]
[1765162941017,0.02992,91370.0,91369.0,0.0698337]
[1765162941608,0.05709,91370.0,91369.0,0.0698337]
[1765162942010,0.07909,91370.0,91369.0,0.0698337]
[1765162942211,0.08109,91370.0,91369.0,0.0698337]
[1765162942916,0.024,91370.0,91369.0,0.0698337]
[1765162943808,0.08109,91370.0,91369.0,0.0698337]
[1765162944317,0.07909,91370.0,91369.0,0.0718337]
[1765162944516,0.05709,91370.0,91369.0,0.0718337]
[1765162944717,0.07009,91370.0,91369.0,0.0718337]
[1765162945117,0.07009,91370.0,91369.0,0.0698337]
[1765162945416,0.07209,91370.0,91369.0,0.0698337]
[1765162945617,0.08109,91370.0,91369.0,0.0698337]
[1765162946818,0.08109,91370.0,91369.0,0.05889]
[1765162947018,0.05709,91368.0,91367.0,0.02916147]
[1765162947214,0.05709,91364.0,91363.0,0.00016411]
[1765162948008,0.05709,91355.0,91354.0,0.02927578]
[1765162948209,0.05709,91353.0,91352.0,0.02927578]
[1765162948516,0.05709,91350.0,91349.0,0.05889]
[1765162948718,0.05709,91350.0,91349.0,0.08817434]
[1765162949113,0.05709,91350.0,91349.0,0.02928434]
[1765162949410,0.0680368,91343.0,91342.0,0.02928434]
[1765162949609,0.0680368,91343.0,91340.0,0.00010999]
[1765162949610,0.05709,91341.0,91340.0,0.02948999]
[1765162949918,0.05709,91341.0,91340.0,0.05899999]
[1765162951622,0.05809,91341.0,91340.0,0.07699999]
[1765162954130,0.05809,91341.0,91340.0,0.04748999]
[1765162954623,0.05809,91341.0,91340.0,0.01810999]
[1765162955527,0.05809,91341.0,91340.0,0.01010999]
[1765162955724,0.05809,91341.0,91340.0,0.07399999]
[1765162956230,0.05809,91341.0,91340.0,0.07299999]
[1765162956415,0.05809,91341.0,91340.0,0.04348999]
[1765162957117,0.05809,91341.0,91340.0,0.06799999]
[1765162957424,0.05809,91341.0,91340.0,0.03848999]
[1765162957725,0.05809,91341.0,91340.0,0.00910999]
[1765162958112,0.05809,91341.0,91340.0,0.06799999]
[1765162961523,0.05809,91341.0,91340.0,0.00910999]
[1765162961722,0.05809,91341.0,91326.0,0.00027375]
[1765162961723,0.05709,91327.0,91326.0,0.00027375]
[1765162962122,0.02992,91327.0,91326.0,0.05781375]
[1765162962332,0.0574,91334.0,91333.0,0.05754]
[1765162962529,0.0854,91341.0,91340.0,0.05754]
[1765162963124,0.0604,91341.0,91340.0,0.05754]
[1765162963431,0.0574,91341.0,91340.0,0.05754]
[1765162963814,0.0824,91341.0,91340.0,0.05754]
[1765162964218,0.0854,91341.0,91340.0,0.05754]
[1765162964417,0.0574,91337.0,91336.0,0.07512]
[1765162964632,0.0574,91331.0,91330.0,0.0684883]
[1765162964831,0.0574,91331.0,91330.0,0.05754]
[1765162965028,0.0574,91331.0,91326.0,0.00027375]
[1765162965234,0.0574,91327.0,91326.0,0.02995375]
[1765162965422,0.0574,91327.0,91326.0,0.05781375]
[1765162966527,0.0584,91327.0,91326.0,0.06381375]
[1765162966826,0.0594,91327.0,91326.0,0.00627375]
[1765162967731,0.0574,91305.0,91304.0,0.07512]
[1765162967930,0.0574,91297.0,91296.0,0.05754]
[1765162968325,0.0574,91297.0,91296.0,0.07512]
[1765162968729,0.05750338,91297.0,91296.0,0.07512]
[1765162969532,0.05850338,91297.0,91296.0,0.08112]
[1765162969730,0.05850338,91297.0,91296.0,0.06354]
[1765162970035,0.05950338,91297.0,91296.0,0.08112]
[1765162970237,0.05950338,91297.0,91296.0,0.006]
[1765162970732,0.0574,91289.0,91288.0,0.07512]
[1765162971926,0.0584,91289.0,91288.0,0.08112]
[1765162972332,0.001,91289.0,91288.0,0.08412]
[1765162972530,0.0584,91289.0,91288.0,0.06654]
[1765162973124,0.0584,91289.0,91288.0,0.009]
[1765162973435,0.0584,91289.0,91288.0,0.03868]
[1765162973633,0.0584,91289.0,91288.0,0.06654]
[1765162974038,0.0584,91289.0,91288.0,0.08412]
[1765162974826,0.0584,91289.0,91288.0,0.06654]
[1765162975032,0.0584,91289.0,91288.0,0.08412]
[1765162975633,0.0584,91289.0,91288.0,0.03868]
[1765162975832,0.0584,91289.0,91288.0,0.009]
[1765162976236,0.0574,91287.0,91286.0,0.00027387]
[1765162976433,0.0574,91287.0,91286.0,0.02995387]
[1765162977442,0.0574,91287.0,91286.0,0.00027387]
[1765162978542,0.0834,91287.0,91286.0,0.00027387]
[1765162978736,0.0904,91287.0,91286.0,0.06073387]
[1765162979735,0.0904,91287.0,91286.0,0.00127387]
[1765162979935,0.0904,91287.0,91286.0,0.03095387]
[1765162980638,0.0834,91287.0,91286.0,0.02995387]
[1765162980944,0.0904,91287.0,91286.0,0.03095387]
[1765162981245,0.0904,91287.0,91286.0,0.00127387]
[1765162981439,0.0904,91287.0,91286.0,0.06073387]
[1765162981647,0.06296,91287.0,91286.0,0.06073387]
[1765162981836,0.06144,91287.0,91286.0,0.06073387]
[1765162982550,0.033,91287.0,91286.0,0.06073387]
[1765162982937,0.06144,91287.0,91286.0,0.06073387]
[1765162983145,0.0909,91287.0,91286.0,0.06073387]
[1765162983440,0.0909,91287.0,91286.0,0.03095387]
[1765162983644,0.0909,91287.0,91286.0,0.00127387]
[1765162984639,0.0579,91273.0,91272.0,0.07704]
[1765162984838,0.06898581,91273.0,91272.0,0.07704]
[1765162985039,0.0579,91265.0,91264.0,0.07704]
[1765162985637,0.05803061,91273.0,91272.0,0.07666]
[1765162985839,0.00013061,91273.0,91272.0,0.07666]
[1765162986039,0.04957061,91273.0,91272.0,0.07666]
[1765162986239,0.07903061,91273.0,91272.0,0.07666]
[1765162986838,0.08403061,91273.0,91272.0,0.07766]
[1765162987548,0.06403061,91273.0,91272.0,0.06046]
[1765162987848,0.06403061,91273.0,91272.0,0.03068]
[1765162988141,0.06403061,91273.0,91272.0,0.07766]
[1765162988347,0.08503061,91273.0,91272.0,0.07766]
[1765162989533,0.08503061,91273.0,91272.0,0.06046]
[1765162989748,0.08503061,91273.0,91272.0,0.001]
[1765162991048,0.08503061,91273.0,91272.0,0.06046]
[1765162991250,0.08503061,91273.0,91272.0,0.07766]
[1765162992639,0.05557061,91273.0,91272.0,0.07766]
[1765162992843,0.08354061,91273.0,91272.0,0.07766]
[1765162997660,0.08354061,91273.0,91272.0,0.001]
[1765162998054,0.08354061,91273.0,91272.0,0.02857]
[1765162998363,0.08354061,91273.0,91272.0,0.05636]
[1765162998553,0.08354061,91273.0,91272.0,0.07316]
[1765162998754,0.05557061,91273.0,91272.0,0.07316]
[1765162999054,0.08354061,91273.0,91272.0,0.07316]
[1765163003867,0.05557061,91273.0,91272.0,0.07316]
[1765163004065,0.02713061,91273.0,91272.0,0.07316]
[1765163004265,0.05683061,91273.0,91272.0,0.07316]